Cogmind - Beta 16.1 @@@ ROGUE MODE // 2026.02.23 @ 15:24:35 Player: SunShine214 Result: Destroyed by S-43 Plague with Heavy Machine Gun Performance ------------- Evolutions (7) 3500 Regions Visited (15) 3000 Robots Destroyed (156) 780 Value Destroyed (6607) 6607 Prototype IDs (13) 260 Alien Tech Used (0) 0 Bonus (2133) 2133 TOTAL SCORE: 16280 Bonus ------- High Alert Combat Kills 701 Follower Combat Kills 1450 Network Hubs Disabled 200 Friendly Fire -218 Cogmind --------- Core Integrity 0/1300 Matter 285/300 Energy 99/100 System Corruption 46% Temperature Cool (0) Movement Core (50) Location -3/Research Parts ------- > --- POWER (2) -------- (None) > --- PROPULSION (6) --- (None) > --- UTILITY (11) ----- Machine Analyzer > --- WEAPON (2) ------- (None) > --- INVENTORY (5) ---- Improved Matter Compressor (44) Weapon Mount Advanced Transmission Jammer Authchip [Armor] Advanced Datajack Peak State ------------ > --- POWER ------------ Quantum Reactor > --- PROPULSION ------- Hovering Antigrav-Biometal Exoskeleton > --- UTILITY ---------- Armored Scrap Engine Large Storage Unit Machine Analyzer Advanced Melee Analysis Suite Heavy Armor Plating Layered Medium Armor Plating Centrium Medium Armor Plating Hacking Suite > --- WEAPON ----------- Railgun Power Maul > --- INVENTORY -------- Backup Power III Quantum Reactor Large Storage Unit Improved Heavy Armor Plating Damper Plating Authchip [Armor] Power Maul Greatsword [Rating: 102] Favorites ----------- Power Heavy Ion Engine Engine Heavy Ion Engine Power Core Light Nuclear Core Reactor Constructs Propulsion Constructs Treads Light Treads Hover Unit Constructs Flight Unit Xenon Bombardment Thruster Utility Large Storage Unit Device Armored Scrap Engine Storage Large Storage Unit Processor Machine Analyzer Hackware Hacking Suite Protection Improved Light Armor Plating Weapon Power Maul Energy Gun Improved EM Shotgun Energy Cannon Heavy Phase Cannon Ballistic Gun Gauss Rifle Ballistic Cannon Hypervelocity Gauss Cannon Launcher Mini Grenade Launcher Special Weapon Mining Laser Impact Weapon Power Maul Slashing Weapon Greatsword Build | -11 -10 -9 -9 -9 -7 -6 -6 -6 -5 -5 -5 -5 -5 -4 -3 ------- Run | Yrd Mat Mat Sto Rec Fac Fac Was Fac Fac Ext Cet Arc Hub Fac Res Slots Evolved 14 | . . 2 . . 4 2 . . 2 . . . . 2 2 Power 1 | . . . . . . . . . . . . . . 1 . Propulsion 4 | . . . . . 1 1 . . . . . . . 1 1 Utility 9 | . . 2 . . 3 1 . . 2 . . . . . 1 Weapon . | . . . . . . . . . . . . . . . . Parts Attached 115 | 8 10 2 9 3 28 4 1 1 2 3 3 2 7 8 24 Power 16 | 1 . . 1 . 4 . . . . . 2 . 1 2 5 Engine 5 | 1 . . 1 . 2 . . . . . . . . . 1 Core 3 | . . . . . 2 . . . . . . . 1 . . Reactor 8 | . . . . . . . . . . . 2 . . 2 4 Propulsion 12 | 2 4 . 2 . 2 . . . . . . . . . 2 Treads 9 | 2 4 . 2 . 1 . . . . . . . . . . Leg . | . . . . . . . . . . . . . . . . Wheel . | . . . . . . . . . . . . . . . . Hover 2 | . . . . . 1 . . . . . . . . . 1 Flight 1 | . . . . . . . . . . . . . . . 1 Utility 53 | 2 2 2 2 2 17 4 1 . 2 . 1 1 5 4 8 Device 16 | 1 1 . . 1 5 1 . . . . . . 2 1 4 Storage 6 | 1 1 . . . 1 . . . . . . . . 1 2 Processor 6 | . . 1 . . 2 2 . . . . . . 1 . . Hackware 4 | . . . . . 3 . . . 1 . . . . . . Protection 21 | . . 1 2 1 6 1 1 . 1 . 1 1 2 2 2 Artifact . | . . . . . . . . . . . . . . . . Weapon 34 | 3 4 . 4 1 5 . . 1 . 3 . 1 1 2 9 Energy Gun 13 | 2 2 . 3 . 1 . . . . 1 . . . . 4 Energy Cannon 5 | . . . 1 . . . . . . 1 . . . . 3 Ballistic Gun 4 | 1 . . . . 1 . . . . . . 1 . . 1 Ballistic Cannon 2 | . . . . . . . . . . . . . . 1 1 Launcher 4 | . 1 . . 1 . . . . . 1 . . 1 . . Special Weapon 1 | . 1 . . . . . . . . . . . . . . Impact Weapon 4 | . . . . . 3 . . 1 . . . . . . . Slashing Weapon 1 | . . . . . . . . . . . . . . 1 . Piercing Weapon . | . . . . . . . . . . . . . . . . Special Melee Weapon . | . . . . . . . . . . . . . . . . Unidentified Prototypes 9 | . . . 3 1 1 . . . . . 1 . . 2 1 Corrupted Parts 7 | . . . . . 3 . . . . . . 1 . . 3 System Corruption 30 | . . . . . 6 . . . . . . 10 . . 14 Parts Lost 76 | . 1 . 1 . 16 2 . . . 3 2 1 12 8 30 Power 13 | . . . . . 1 1 . . . 1 . . 2 2 6 Propulsion 6 | . . . . . 2 . . . . . . . . 1 3 Utility 34 | . . . . . 10 1 . . . 1 2 1 7 2 10 Weapon 23 | . 1 . 1 . 3 . . . . 1 . . 3 3 11 Highest Loss Streak 10 | . 1 . 1 . 3 1 . . . 2 2 1 4 6 10 To Critical Strikes . | . . . . . . . . . . . . . . . . Average Backups 10 | 2 7 14 14 13 11 13 10 9 9 8 7 8 8 7 7 Power . | . . 1 1 1 . . . . . . 1 2 2 2 . Propulsion 1 | 1 2 4 4 1 1 3 2 1 . . . . . . . Utility 6 | . 1 5 5 8 7 5 5 5 5 5 4 4 4 3 4 Weapon 2 | . 2 3 2 2 2 5 3 3 3 2 2 2 2 2 . Tool/Special . | . . . . . . . . . . . . . . . . Unused Backups 37 | . 2 . 2 4 9 2 4 1 2 2 . . . 1 8 Power 1 | . . . . . 1 . . . . . . . . . . Propulsion 15 | . 2 . 2 3 3 1 2 . 1 . . . . . 1 Utility 16 | . . . . . 5 1 1 . 1 2 . . . 1 5 Weapon 2 | . . . . . . . 1 1 . . . . . . . Tool/Special 3 | . . . . 1 . . . . . . . . . . 2 Average Slot Usage (%) 74 | . 99 77 100 84 74 72 73 73 73 71 64 63 56 47 44 Engine 4 | . 14 11 11 11 1 1 1 . . 2 1 . . . . Core 1 | . . . . . 5 4 . . . . . . 1 . . Reactor 1 | . . . . . . . 4 6 5 2 3 5 . 2 5 Treads 6 | . 27 22 22 10 6 . 2 . 2 5 1 . . . . Leg 1 | . . . . 3 1 . . . . . . . . . 2 Hover 1 | . . . . . 3 6 3 . . . . . . 4 . Device 12 | . 14 11 11 11 13 13 13 13 11 11 6 5 11 13 14 Storage 7 | . 14 11 11 11 7 6 6 6 5 5 5 5 5 9 5 Processor 8 | . . . 11 11 5 18 13 13 11 11 11 6 7 5 4 Hackware 3 | . . . . . 7 6 6 6 11 7 5 5 3 . . Protection 4 | . . . 11 4 3 . 6 6 8 11 10 15 6 4 . Energy Gun 5 | . 19 17 18 15 1 . . . . 2 . . . . 2 Ballistic Gun 2 | . 5 . . . 1 6 6 6 5 1 . 3 . . 1 Launcher 1 | . 2 . . 6 1 . . . . . . . . . . Impact Weapon 4 | . . . . . 8 6 6 6 5 5 5 5 6 2 . Peak Build Rating 102 | 9 10 10 18 39 65 70 77 72 89 91 93 97 102 101 102 Average Rating 53 | 7 8 8 16 27 50 68 74 71 81 85 88 95 82 83 82 On Entrance 53 | . 9 8 10 18 39 65 70 71 71 89 83 93 97 64 70 Avg Prop Armor Cover (%) 4 | . . . . . 4 . . . . . . . . . 2 Naked Turns . | . . . . . . . . . . . . . . . . Heaviest Build 80 | 15 31 33 38 38 60 44 44 44 52 54 69 80 80 59 76 Greatest Support 110 | 40 40 40 43 43 38 37 62 54 101 101 101 101 101 110 84 Greatest Overweight (x) 10 | 1 . . . 10 7 1 1 . . . . . . . 2 Average Overweight (x) . | . . . . . . . . . . . . . . . . Largest Inventory Capacity 15 | 8 15 15 15 15 15 15 15 15 15 15 15 15 15 15 15 Average Capacity 14 | 7 9 15 15 15 15 15 15 15 15 15 15 15 15 15 14 Most Carried 15 | 4 15 14 15 15 15 15 15 15 14 14 13 13 15 14 12 Average Carried 12 | 2 7 13 14 13 12 14 14 13 13 13 12 13 13 9 7 Final Capacity 15 | 8 15 15 15 15 15 15 15 15 15 15 15 15 15 15 5 Final Carried 15 | 4 14 13 15 15 13 15 13 15 14 11 13 13 14 7 5 Scrap Engine Consumption 122 | . . . . 16 49 3 12 2 4 4 3 . 6 5 18 Constructs Created 9 | . . . . 3 2 1 . . . . . . 1 . 2 Constructs Modified 35 | . . . . 2 11 5 6 . 1 . 1 . 1 1 7 Class Distribution -------------------- 55% | Mutant 9% | Scout 8% | Commander-Mutant 7% | Assassin 7% | Hacker-Mutant 3% | Hacker-Assassin Dominant Class ---------------- Mutant | -10/Materials Mutant | -9/Materials Mutant | -9/Storage Mutant | -9/Recycling Mutant | -7/Factory Scout | -6/Factory Assassin | -6/Waste Scout | -6/Factory Hacker-Assassin | -5/Factory Assassin | -5/Extension Mutant | -5/Cetus Scavenger-Mutant | -5/Archives Mutant | -5/Hub_04(d) Mutant | -4/Factory Mutant | -3/Research Resources | -11 -10 -9 -9 -9 -7 -6 -6 -6 -5 -5 -5 -5 -5 -4 -3 ----------- Run | Yrd Mat Mat Sto Rec Fac Fac Was Fac Fac Ext Cet Arc Hub Fac Res Matter Collected 2938 | 300 36 . 440 155 742 73 74 11 5 154 30 38 105 70 705 Remotely . | . . . . . . . . . . . . . . . . Salvage Created 6305 | 173 407 150 868 256 1545 73 . 9 . 129 348 579 562 278 928 Parts 252 | 14 30 8 46 11 54 2 . . . 6 9 5 14 6 47 Haulers Intercepted 6 | . 1 1 2 . . . . . . . . . 1 1 . Recyclers Shooed . | . . . . . . . . . . . . . . . . Parts Field Recycled . | . . . . . . . . . . . . . . . . Retrieved Matter . | . . . . . . . . . . . . . . . . Parts Self-Destructed . | . . . . . . . . . . . . . . . . Prevented . | . . . . . . . . . . . . . . . . Parts Restored . | . . . . . . . . . . . . . . . . Kills | -11 -10 -9 -9 -9 -7 -6 -6 -6 -5 -5 -5 -5 -5 -4 -3 ------- Run | Yrd Mat Mat Sto Rec Fac Fac Was Fac Fac Ext Cet Arc Hub Fac Res Combat Hostiles Destroyed 107 | . 8 1 12 2 39 1 . . . 6 5 4 10 2 17 Melee 14 | . . . . . 8 . . . . . . . 5 1 . Guns 29 | . 8 1 7 1 3 1 . . . 1 . . . . 7 Cannons 6 | . . . . . . . . . . . 3 . . . 3 AOE 34 | . . . 5 1 16 . . . . 5 . . . 1 6 Classes Destroyed 16 | 2 7 1 3 1 2 . . . . . . . . . . Worker 7 | . 1 . 1 . 2 . . 1 . . . . 1 1 . Builder 4 | . 2 . 2 . . . . . . . . . . . . Tunneler 8 | 5 . . . . 1 . . . . . . . . 1 1 Hauler 6 | . 1 1 2 . . . . . . . . . 1 1 . Recycler 4 | 1 1 . 1 1 . . . . . . . . . . . Mechanic 4 | . . . 1 . 2 . . . . . . . . 1 . Operator 11 | . 1 . 1 . 1 . . . . . . 8 . . . Watcher 4 | . 2 1 1 . . . . . . . . . . . . Swarmer 25 | . 6 . . . 7 . . . . 4 . . 3 . 5 Grunt 34 | . 2 . 6 . 20 . . . . 2 . . 2 . 2 Brawler 6 | . . . 1 . 3 1 . . . . . . 1 . . Duelist 1 | . . . 1 . . . . . . . . . . . . Sentry 15 | . . 1 4 1 2 . . . . . . 4 1 . 2 Hunter 8 | . . . . . 2 . . . . . 1 . 1 2 2 Programmer 13 | . . . . . 5 . . . . . . . 2 . 6 Cetus Guard 4 | . . . . . . . . . . . 4 . . . . Scrapper 2 | . . . . 2 . . . . . . . . . . . Best Kill Streak 7 | 2 5 3 7 2 7 1 . 1 . 5 2 4 3 3 4 Combat Bots Only 6 | . 3 1 3 1 6 1 . . . 5 2 2 3 1 4 Max Kills in Single Turn 5 | 1 3 1 5 2 3 1 . 1 . 3 1 1 1 2 2 Gunslinging . | . . . . . . . . . . . . . . . . Exploded 3 | . . . 1 1 3 . . . . 3 . . . 1 2 Melee 1 | . . . . . 1 . . . . . . . 1 1 . Uniques/NPCs Destroyed . | . . . . . . . . . . . . . . . . Combat | -11 -10 -9 -9 -9 -7 -6 -6 -6 -5 -5 -5 -5 -5 -4 -3 -------- Run | Yrd Mat Mat Sto Rec Fac Fac Was Fac Fac Ext Cet Arc Hub Fac Res Hostile Shots Fired 1532 | . 45 13 29 12 344 6 . 9 . 86 56 48 224 213 447 Missed 527 | . 11 3 9 4 102 2 . 4 . 29 23 21 85 88 146 Hits 1005 | . 34 10 20 8 242 4 . 5 . 57 33 27 139 125 301 Melee 21 | . . . . . 16 3 . . . . . . 2 . . Projectile 984 | . 34 10 20 8 226 1 . 5 . 57 33 27 137 125 301 AOE 2 | . . . . . 2 . . . . . . . . . . Critical Strikes 59 | . . . . 1 11 1 . . . 2 6 . 10 5 23 Part Disruptions 4 | . . . . . . . . . . . . . 1 1 2 Damage Taken 18978 | 32 371 147 454 171 3511 122 . 40 44 1261 843 748 3223 1867 6144 Core 3070 | . 93 27 52 14 534 34 . . . 161 68 59 352 364 1312 Absorbed by Shields 387 | . . . . . 166 . . . . . . . . . 221 Redirected to Shielding 322 | . . . . . 9 . . . . . . . . 313 . Ignored by Resistances 108 | . . . . . . . . . . . . . . . 108 Regen/Repaired (Parts) 3924 | . . . . 35 637 169 91 . . 302 697 31 491 593 878 Core Remaining (%) 65 | 100 62 . . 76 23 . . 96 . . . . 36 68 . Volleys Fired 321 | 9 39 15 37 3 45 8 . . . 20 22 1 10 16 96 Largest 2 | 2 2 2 2 2 2 1 . . . 1 1 1 1 1 2 Hottest 180 | 90 140 80 145 75 150 28 . . . 75 90 90 60 51 180 Shots Fired 496 | 18 77 25 72 7 63 8 . . . 20 22 1 11 16 156 Gun 352 | 18 71 25 64 3 43 8 . . . 12 . . 3 . 105 Cannon 88 | . . . . . . . . . . . 22 1 8 14 43 Launcher 50 | . 5 . 5 4 18 . . . . 8 . . . 2 8 Special 6 | . 1 . 3 . 2 . . . . . . . . . . Kinetic 94 | . 29 . . . 1 8 . . . . . . 3 14 39 Thermal 158 | 9 32 . 3 . 27 . . . . 12 22 1 . . 52 Explosive 50 | . 5 . 5 4 18 . . . . 8 . . . 2 8 Electromagnetic 194 | 9 11 25 64 3 17 . . . . . . . 8 . 57 Robot Hit Streak 20 | 4 9 9 20 4 10 4 . . . 6 7 1 6 5 12 Robot Miss Streak 7 | 1 3 2 7 1 7 2 . . . 5 3 . 2 2 4 Penetration Max 1 | . . . . . . 1 . . . . . . . . . Secondary Targets . | . . . . . . . . . . . . . . . . Shots Hit Robots 451 | 13 45 18 53 4 105 6 . 1 . 11 17 27 34 21 96 Core Hits 228 | 7 23 5 38 9 59 3 . . . 14 5 2 10 9 44 Critical Kills 7 | . . . . . 5 . . . . . . . . . 2 Critical Parts Destroyed 36 | . . . . . 18 . . . . . 1 6 8 1 2 Critical Strikes 57 | . 3 1 . . 24 . . . . . 1 6 8 7 7 Burn 3 | . 3 . . . . . . . . . . . . . . Destroy 6 | . . . . . . . . . . . . . . . 6 Blast 4 | . . . . . . . . . . . . . . 4 . Corrupt 2 | . . 1 . . . . . . . . . . . . 1 Smash 40 | . . . . . 24 . . . . . 1 6 8 1 . Sever 2 | . . . . . . . . . . . . . . 2 . Melee Attacks 253 | . . . . . 137 11 . 13 5 2 5 27 40 13 . Impact 243 | . . . . . 137 11 . 13 5 2 5 27 40 3 . Slashing 10 | . . . . . . . . . . . . . . 10 . Piercing . | . . . . . . . . . . . . . . . . Sneak Attacks 18 | . . . . . 6 . . 1 . . . 8 1 2 . Combat Hostiles 1 | . . . . . 1 . . . . . . . . . . Follow-up Attacks 6 | . . . . . 4 . . . . . . . 2 . . Damage Inflicted 17567 | 204 695 281 1345 217 5545 155 . 106 . 740 686 1431 1708 1111 3343 Guns 3927 | 182 497 233 731 30 436 155 . . . 159 . . 44 . 1460 Cannons 1822 | . . . . . . . . . . . 576 36 150 248 812 Explosions 5028 | 22 197 46 603 170 1805 . . . . 581 . . 331 237 1036 Melee 6717 | . . . . . 3304 . . 106 . . 110 1395 1183 619 . Ramming 73 | . 1 2 11 17 . . . . . . . . . 7 35 Kinetic 1183 | . 126 . . . . 155 . . . . . . 44 248 610 Thermal 3023 | 110 262 46 126 . 345 . . . . 159 576 36 . 93 1270 Explosive 4215 | . 197 . 477 170 1682 . . . . 581 . . . 144 964 Electromagnetic 2356 | 94 109 233 731 30 214 . . . . . . . 481 . 464 Impact 6313 | . . . . . 3304 . . 106 . . 110 1395 1183 215 . Slashing 404 | . . . . . . . . . . . . . . 404 . Piercing . | . . . . . . . . . . . . . . . . Highest Corruption 46 | . . . 4 4 26 2 2 2 . . . 10 19 2 46 Average Corruption 11 | . . . 2 4 17 2 2 2 . . . 10 12 1 24 Corruption Purged . | . . . . . . . . . . . . . . . . Corruption Blocked . | . . . . . . . . . . . . . . . . Effects 279 | . . . 12 41 125 . 6 10 . . . 8 21 . 56 Message Errors 72 | . . . 4 10 33 . 2 3 . . . 3 6 . 11 Matter Fused 71 | . . . 4 12 36 . 2 3 . . . 2 2 . 10 Heat Flow Errors 21 | . . . . 4 12 . . 1 . . . 1 1 . 2 Energy Discharges 26 | . . . 2 6 13 . . 1 . . . . . . 4 Parts Rejected 8 | . . . . . 4 . . . . . . . 1 . 3 Parts Fused 2 | . . . . 1 . . . . . . . . . . 1 Data Loss (minor) 36 | . . . . 3 18 . . 1 . . . . 4 . 10 Data Loss (major) 16 | . . . 1 4 3 . 2 1 . . . . . . 5 Misfires 6 | . . . . 1 2 . . . . . . . 2 . 1 Alerts 5 | . . . . . 3 . . . . . . 1 . . 1 Misdirections 12 | . . . . . 1 . . . . . . 1 4 . 6 Weapon Failures 4 | . . . 1 . . . . . . . . . 1 . 2 Overload Shots . | . . . . . . . . . . . . . . . . Overflow Damage 3049 | . . . . . 1321 . . 66 . 5 62 841 478 178 98 Projectiles 71 | . . . . . . . . . . . . . . . 71 Explosions 134 | . . . . . 77 . . . . 5 . . 25 . 27 Melee 2844 | . . . . . 1244 . . 66 . . 62 841 453 178 . Knockbacks 18 | . . . . . 10 . . . . . 1 4 1 1 1 Impact 17 | . . . . . 10 . . . . . 1 4 1 . 1 Kinetic 1 | . . . . . . . . . . . . . . 1 . Secondary . | . . . . . . . . . . . . . . . . Self-Inflicted Damage 566 | 32 39 . 105 5 138 . . . . 31 . . 109 . 107 Shots 16 | 1 2 . 3 1 5 . . . . 1 . . 1 . 2 Rammed 12 | . 2 1 3 4 . . . . . . . . . . 2 Targets Rammed 18 | . 2 1 4 4 . . . . . . . . . 1 6 Kicked 5 | . . . . . . . . . . . . . . 1 4 Crushed 1 | . . . 1 . . . . . . . . . . . . Highest Temperature 460 | 72 300 72 121 239 256 . . 137 . 35 460 191 87 . 198 Average Temperature 77 | 28 75 28 47 68 63 . . 72 . 12 235 81 23 . 82 Received Heat Transfer 2480 | . 90 36 111 103 943 9 . 12 . 240 54 108 288 109 377 Effects 3 | . . . . . . . . . . . 3 . . . . Shutdowns 2 | . . . . . . . . . . . 2 . . . . Short Circuit 1 | . . . . . . . . . . . 1 . . . . Siege Activations . | . . . . . . . . . . . . . . . . Martial Activations . | . . . . . . . . . . . . . . . . Shielding Activations . | . . . . . . . . . . . . . . . . Robots Disrupted 3 | . . . . . . . . . . . . . . . 3 Combat Hostiles 3 | . . . . . . . . . . . . . . . 3 Robots Corrupted 37 | . . . 1 . 15 . . . . . 1 10 7 2 1 Combat Hostiles 23 | . . . . . 12 . . . . . 1 4 5 . 1 Parts Fried 35 | . . 1 2 . 13 . . . . . 2 12 2 1 2 Impact Corruptions 93 | . . . . . 44 . . 1 . . 2 24 16 6 . Robots Melted . | . . . . . . . . . . . . . . . . Combat Hostiles . | . . . . . . . . . . . . . . . . Parts Melted 6 | . 2 . . . 1 . . . . 1 2 . . . . Heat Transferred 3915 | 309 999 50 150 . 544 . . . . 296 629 37 . 50 851 Parts Sabotaged . | . . . . . . . . . . . . . . . . Parts Stolen . | . . . . . . . . . . . . . . . . Parts Stripped . | . . . . . . . . . . . . . . . . Power Chain Reactions 5 | 1 . 1 2 . . . . . . . . . . . 1 Alert | -11 -10 -9 -9 -9 -7 -6 -6 -6 -5 -5 -5 -5 -5 -4 -3 ------- Run | Yrd Mat Mat Sto Rec Fac Fac Was Fac Fac Ext Cet Arc Hub Fac Res Maximum Alert Level 3 | . . . 1 . 3 2 . 2 2 3 2 . 2 1 1 Low Security (%) 57 | 100 100 100 89 100 2 . 100 61 11 32 . 100 93 96 87 Level 1 10 | . . . 10 . 5 69 . 27 28 1 45 . . 3 12 Level 2 17 | . . . . . 41 30 . 10 59 18 54 . 6 . . Level 3 14 | . . . . . 51 . . . . 47 . . . . . Level 4 . | . . . . . . . . . . . . . . . . Level 5 . | . . . . . . . . . . . . . . . . High Security . | . . . . . . . . . . . . . . . . Max Security . | . . . . . . . . . . . . . . . . Peak Influence 936 | 10 168 84 263 42 936 460 94 453 552 880 485 153 478 233 242 Initial 480 | . . 63 29 42 152 458 94 . 217 184 480 143 39 233 50 Average 272 | . 48 69 103 3 680 352 20 162 396 556 407 132 84 22 104 Influence Increases 7435 | 30 375 48 701 115 1809 127 . 768 461 941 149 120 789 212 790 Destroy 0b10 Robot/C 2900 | . 160 20 340 40 780 20 . 240 120 420 100 80 200 40 340 Destroy 0b10 Robot/NC 290 | 30 40 10 45 5 30 . . 25 10 15 5 40 10 20 5 Destroy Leader 622 | . 36 14 116 . 170 . . 76 20 36 10 . 42 12 90 Allied During Kill 956 | . . . 62 5 . . . 341 150 372 26 . . . . Successful Hack 156 | . 8 . 36 19 26 23 . 29 . . . . . 15 . Disable Machine 630 | . 45 . 45 . 165 30 . . 105 30 . . 180 30 . Anti-Garrison Action 150 | . . . . . 150 . . . . . . . . . . Destroy Structure 906 | . 56 4 42 31 173 9 . 57 56 68 8 . 192 80 130 Advance Influence 150 | . . . . . 150 . . . . . . . . . . Partial Spotted 60 | . . . . . 15 . . . . . . . 15 15 15 Lose Combat Pursuer 615 | . 30 . 15 15 150 45 . . . . . . 150 . 210 Influence Decreases 7323 | 30 223 129 664 218 878 792 271 323 530 458 649 366 424 594 774 Entered New Map 2235 | . . 89 42 66 3 478 177 . 228 192 379 216 74 245 46 Time Decay 3697 | 30 223 40 422 152 715 294 94 243 262 206 120 130 230 80 456 Lost Part 678 | . . . 10 . 160 20 . . . 30 20 10 120 36 272 Lost Ally 330 | . . . 40 . . . . 80 40 30 130 10 . . . Purge Threat 383 | . . . 150 . . . . . . . . . . 233 . Squads Dispatched 47 | . . 1 2 . 21 3 . 3 5 . 1 . 4 2 5 Investigation 15 | . . . 2 . 5 1 . 2 1 . 1 . 2 . 1 Extermination 12 | . . . . . 6 . . 1 1 . . . 1 . 3 Reinforcement 9 | . . 1 . . 2 2 . . . . . . 1 2 1 Assault 4 | . . . . . 4 . . . . . . . . . . Garrison 7 | . . . . . 4 . . . 3 . . . . . . Intercept . | . . . . . . . . . . . . . . . . Searches Triggered . | . . . . . . . . . . . . . . . . Construction Impeded 5 | . . 1 . . 1 1 . . . . . . 1 . 1 Haulers Reinforced . | . . . . . . . . . . . . . . . . Active Scanning Responses . | . . . . . . . . . . . . . . . . Cargo Convoy Interrupts 1 | . . . . . . . . . . . . . . . 1 Stealth | -11 -10 -9 -9 -9 -7 -6 -6 -6 -5 -5 -5 -5 -5 -4 -3 --------- Run | Yrd Mat Mat Sto Rec Fac Fac Was Fac Fac Ext Cet Arc Hub Fac Res Distress Signals 13 | . 3 . 2 . 3 . . . . 2 1 . . 1 1 Communications Jammed . | . . . . . . . . . . . . . . . . Distress Signals . | . . . . . . . . . . . . . . . . Times Spotted 236 | . 17 3 22 6 64 4 . 7 2 25 6 6 27 10 37 Peak Tracking Total 11 | . 4 2 4 4 6 3 . 5 . 11 5 3 10 7 9 Tactical Retreats 27 | . 1 . 1 2 10 2 . . . . . . 5 . 6 Traps | -11 -10 -9 -9 -9 -7 -6 -6 -6 -5 -5 -5 -5 -5 -4 -3 ------- Run | Yrd Mat Mat Sto Rec Fac Fac Was Fac Fac Ext Cet Arc Hub Fac Res Traps Triggered 8 | . 1 . 2 . 3 2 . . . . . . . . . Indirectly . | . . . . . . . . . . . . . . . . Trap Hack Attempts . | . . . . . . . . . . . . . . . . Triggered . | . . . . . . . . . . . . . . . . Disarmed . | . . . . . . . . . . . . . . . . Reprogrammed . | . . . . . . . . . . . . . . . . Reused . | . . . . . . . . . . . . . . . . Traps Extracted . | . . . . . . . . . . . . . . . . Installed . | . . . . . . . . . . . . . . . . Triggered . | . . . . . . . . . . . . . . . . Machines | -11 -10 -9 -9 -9 -7 -6 -6 -6 -5 -5 -5 -5 -5 -4 -3 ---------- Run | Yrd Mat Mat Sto Rec Fac Fac Was Fac Fac Ext Cet Arc Hub Fac Res Machines Disabled 44 | . 3 . 3 . 12 2 . . 7 3 . . 12 2 . Max in Single Turn 10 | . 2 . 1 . 4 1 . . . 1 . . 10 1 . Garrison Access 3 | . . . . . 2 . . . . . . . . . 1 Network Hub 1 | . . . . . . . . . . . . . 1 . . Machines Repaired . | . . . . . . . . . . . . . . . . Machines Dismantled . | . . . . . . . . . . . . . . . . Machines Sabotaged . | . . . . . . . . . . . . . . . . Overloaded Fab Kills . | . . . . . . . . . . . . . . . . Hacking | -11 -10 -9 -9 -9 -7 -6 -6 -6 -5 -5 -5 -5 -5 -4 -3 --------- Run | Yrd Mat Mat Sto Rec Fac Fac Was Fac Fac Ext Cet Arc Hub Fac Res Machines Accessed 70 | . 5 . 10 8 12 4 . 9 3 . 2 . 4 4 9 Terminals 50 | . 5 . 10 4 6 2 . 7 2 . 2 . 4 2 6 Fabricators 6 | . . . . . 2 1 . 1 1 . . . . . 1 Repair Stations . | . . . . . . . . . . . . . . . . Recycling Units 5 | . . . . 3 . 1 . . . . . . . 1 . Scanalyzers 3 | . . . . . . . . 1 . . . . . 1 1 Garrison Access 5 | . . . . . 4 . . . . . . . . . 1 Total Hacks 139 | . 13 . 17 17 19 9 . 17 7 . 5 . 9 9 17 Successful 52 | . 3 . 7 9 8 7 . 6 3 . 2 . . 5 2 Failed 86 | . 10 . 10 8 11 2 . 10 4 . 3 . 9 4 15 Catastrophic 28 | . 2 . 3 2 3 . . 2 1 . 1 . 4 2 8 Database Lockouts 1 | . . . . . . . . 1 . . . . . . . Manual 51 | . 9 . 5 5 2 4 . 7 1 . . 1 9 1 7 Terminals 102 | . 13 . 17 10 7 6 . 14 4 . 5 . 9 6 11 Fabricators 17 | . . . . . 6 2 . 2 3 . . . . . 4 Repair Stations . | . . . . . . . . . . . . . . . . Recycling Units 8 | . . . . 5 . 1 . . . . . . . 2 . Scanalyzers 3 | . . . . . . . . 1 . . . . . 1 1 Garrison Access 7 | . . . . . 6 . . . . . . . . . 1 Terminal Hacks 34 | . 3 . 7 6 3 4 . 4 1 . 2 . . 4 . Record 2 | . . . . . . . . . . . 2 . . . . Part Schematic 6 | . . . 1 3 1 . . 1 . . . . . . . Robot Schematic 1 | . . . 1 . . . . . . . . . . . . Open Door 3 | . . . 3 . . . . . . . . . . . . Open DSF 1 | . . . . . 1 . . . . . . . . . . Level Access Points 2 | . . . . . . 1 . 1 . . . . . . . Branch Access Points 6 | . 1 . 1 . 1 1 . . 1 . . . . 1 . Terminal Index 1 | . . . . . . 1 . . . . . . . . . Unreport Threat 3 | . . . 1 . . . . . . . . . . 2 . Recall Investigation 1 | . . . . . . . . . . . . . . 1 . Hauler Manifests 1 | . . . . . . . . 1 . . . . . . . Registered Components 1 | . . . . . . . . 1 . . . . . . . Zone Layout 4 | . 2 . . 1 . 1 . . . . . . . . . Release Object 2 | . . . . 2 . . . . . . . . . . . Fabricator Hacks 11 | . . . . . 4 2 . 2 2 . . . . . 1 Load Schematic 6 | . . . . . 2 1 . 1 1 . . . . . 1 Build 5 | . . . . . 2 1 . 1 1 . . . . . . Repair Station Hacks . | . . . . . . . . . . . . . . . . Recycling Unit Hacks 5 | . . . . 3 . 1 . . . . . . . 1 . Retrieve Components 5 | . . . . 3 . 1 . . . . . . . 1 . Scanalyzer . | . . . . . . . . . . . . . . . . Garrison Access Hacks 2 | . . . . . 1 . . . . . . . . . 1 Seal Access 2 | . . . . . 1 . . . . . . . . . 1 Unauthorized Hacks . | . . . . . . . . . . . . . . . . Terminals . | . . . . . . . . . . . . . . . . Fabricators . | . . . . . . . . . . . . . . . . Repair Stations . | . . . . . . . . . . . . . . . . Recycling Units . | . . . . . . . . . . . . . . . . Scanalyzers . | . . . . . . . . . . . . . . . . Garrison Access . | . . . . . . . . . . . . . . . . Data Cores Recovered 2 | . 1 . 1 . . . . . . . . . . . . Used 1 | . . . 1 . . . . . . . . . . . . Hacking Detections 51 | . 4 . 7 4 10 2 . 6 3 . 1 . 4 3 7 Full Trace Events 15 | . . . 2 3 3 1 . 1 1 . 1 . 2 . 1 Feedback Events . | . . . . . . . . . . . . . . . . Feedback Blocked . | . . . . . . . . . . . . . . . . Robot Schematics Acquired 1 | . . . 1 . . . . . . . . . . . . Robots Built . | . . . . . . . . . . . . . . . . Authchips . | . . . . . . . . . . . . . . . . Time . | . . . . . . . . . . . . . . . . Total Robot Build Rating . | . . . . . . . . . . . . . . . . Part Schematics Acquired 6 | . . . 1 3 1 . . 1 . . . . . . . Parts Built 9 | . . . . . 4 2 . 1 2 . . . . . . Authchips . | . . . . . . . . . . . . . . . . Time 352 | . . . . . 164 62 . 73 53 . . . . . . Total Part Build Rating 45 | . . . . . 26 4 . 3 12 . . . . . . Part Studies Acquired . | . . . . . . . . . . . . . . . . Parts Repaired . | . . . . . . . . . . . . . . . . Time . | . . . . . . . . . . . . . . . . Parts Recycled . | . . . . . . . . . . . . . . . . Recycled Matter . | . . . . . . . . . . . . . . . . Retrieved Matter . | . . . . . . . . . . . . . . . . Retrieved Components 13 | . . . . 9 . 2 . . . . . . . 2 . Parts Scanalyzed . | . . . . . . . . . . . . . . . . Part Schematics Acquired . | . . . . . . . . . . . . . . . . Parts Damaged . | . . . . . . . . . . . . . . . . Bothacking | -11 -10 -9 -9 -9 -7 -6 -6 -6 -5 -5 -5 -5 -5 -4 -3 ------------ Run | Yrd Mat Mat Sto Rec Fac Fac Was Fac Fac Ext Cet Arc Hub Fac Res Used RIF Installer . | . . . . . . . . . . . . . . . . Robots Hacked . | . . . . . . . . . . . . . . . . Non-combat . | . . . . . . . . . . . . . . . . Combat . | . . . . . . . . . . . . . . . . Robot Hacks Applied . | . . . . . . . . . . . . . . . . Relay Couplers Released 3 | . . . . . 3 . . . . . . . . . . Machine Destruction 3 | . . . . . 3 . . . . . . . . . . Fabnet Peak Effective % . | . . . . . . . . . . . . . . . . Robots Rewired . | . . . . . . . . . . . . . . . . Allies Hacked . | . . . . . . . . . . . . . . . . Hacks Repelled . | . . . . . . . . . . . . . . . . Allies | -11 -10 -9 -9 -9 -7 -6 -6 -6 -5 -5 -5 -5 -5 -4 -3 -------- Run | Yrd Mat Mat Sto Rec Fac Fac Was Fac Fac Ext Cet Arc Hub Fac Res Total Allies 30 | . . . 10 . . . 20 . . . . . . . . Largest Group 20 | . . . 10 5 . . 20 20 16 10 8 1 . . . Highest-Rated Group 722 | . . . 88 47 . . 722 722 622 407 327 27 . . . Highest-Rated Ally 50 | . . . 16 16 . . 50 50 50 50 46 27 . . . Total Orders . | . . . . . . . . . . . . . . . . Ally Attacks 360 | . . . 42 28 . . . 100 33 91 66 . . . . Total Damage 8070 | . . . 356 216 . . . 1902 1963 2555 1078 . . . . Kills 53 | . . . 5 2 . . . 16 11 18 1 . . . . Allies Corrupted 1 | . . . . . . . . 1 . . . . . . . Allies Melted 1 | . . . . 1 . . . . . . . . . . . Intel | -11 -10 -9 -9 -9 -7 -6 -6 -6 -5 -5 -5 -5 -5 -4 -3 ------- Run | Yrd Mat Mat Sto Rec Fac Fac Was Fac Fac Ext Cet Arc Hub Fac Res Active Infowar (turns) 10104 | 147 593 80 1033 979 1700 652 477 775 576 424 252 270 490 252 1404 Sensors 6058 | . 258 80 1033 979 762 652 477 775 576 424 42 . . . . Terrain 482 | 147 335 . . . . . . . . . . . . . . Structural 274 | . . . . . 274 . . . . . . . . . . Machine Analysis 7272 | . . . . . 1700 652 477 775 576 424 252 270 490 252 1404 Robot Analysis Total . | . . . . . . . . . . . . . . . . Derelict Logs Recovered . | . . . . . . . . . . . . . . . . Drone Launches . | . . . . . . . . . . . . . . . . Drone Recoveries . | . . . . . . . . . . . . . . . . Exploration | -11 -10 -9 -9 -9 -7 -6 -6 -6 -5 -5 -5 -5 -5 -4 -3 ------------- Run | Yrd Mat Mat Sto Rec Fac Fac Was Fac Fac Ext Cet Arc Hub Fac Res Turns Passed 13035 | 235 593 80 1033 2224 3298 652 477 775 576 424 252 270 490 252 1404 Spaces Moved 6490 | 121 267 22 517 1082 1389 288 261 428 216 265 176 180 332 190 756 Core 136 | 4 . . . 12 . . . . . . . . . . 120 Treads 2427 | 117 267 22 517 570 512 . 82 . 52 265 17 . . . 6 Legs 1402 | . . . . 500 348 . . . . . . . . 21 533 Wheels . | . . . . . . . . . . . . . . . . Hover 1303 | . . . . . 498 288 174 . . . . . 77 169 97 Flight 1222 | . . . . . 31 . 5 428 164 . 159 180 255 . . Fastest Speed 50 | 50 160 160 160 94 55 55 97 138 138 138 81 81 81 81 50 Average Speed 131 | 157 160 160 160 145 152 74 118 138 138 138 86 81 81 81 116 Slowest Speed 745 | 160 160 160 160 550 745 112 195 138 138 138 138 81 81 88 244 Overloaded Moves . | . . . . . . . . . . . . . . . . Propulsion Burnouts . | . . . . . . . . . . . . . . . . Robots Hopped . | . . . . . . . . . . . . . . . . Potential Cave-ins . | . . . . . . . . . . . . . . . . Cave-ins Triggered . | . . . . . . . . . . . . . . . . Exploration Rate (%) 40 | 4 53 7 80 98 37 7 81 14 8 48 62 95 37 4 18 Regions Visited 15 Branch Regions 6 Pre-discovered Areas . | . . . . . . . . . . . . . . . . Known Exits Taken 8 | . . 1 1 1 . . . 1 1 1 1 . 1 . . Unknown Exits Taken 5 | 1 1 . . . 1 . . . . . . 1 . 1 . Scrap Searched . | . . . . . . . . . . . . . . . . Spaces Dug 67 | . . . . . 38 9 . 12 5 . . . 2 1 . Terrain Destroyed 706 | . 64 3 42 48 210 9 . 12 5 26 4 . 170 43 70 Melee 67 | . . . . . 38 9 . 12 5 . . . 2 1 . Projectile 12 | . . . . . 1 . . . . . 4 . 1 3 3 AOE 627 | . 64 3 42 48 171 . . . . 26 . . 167 39 67 Terrain Rammed . | . . . . . . . . . . . . . . . . Walls Destroyed . | . . . . . . . . . . . . . . . . Machines Disabled . | . . . . . . . . . . . . . . . . Actions | -11 -10 -9 -9 -9 -7 -6 -6 -6 -5 -5 -5 -5 -5 -4 -3 --------- Run | Yrd Mat Mat Sto Rec Fac Fac Was Fac Fac Ext Cet Arc Hub Fac Res Total 9983 | 145 357 40 645 1725 2268 699 431 588 484 297 242 248 462 241 1111 Wait 2611 | . 18 . 47 616 638 377 161 140 259 5 37 39 68 9 197 Move 6477 | 120 266 21 516 1081 1388 288 260 427 215 264 175 179 331 190 756 Hop . | . . . . . . . . . . . . . . . . Pick Up 74 | 4 13 . 11 4 14 6 1 4 1 . . . 1 . 15 Fast Attach 65 | 7 2 1 . 1 13 2 . . 1 . 1 1 8 8 20 Attach 30 | 2 1 1 1 . 12 . . . 1 1 . . 1 2 8 Detach 18 | 2 . . . 4 5 . . . . . . . 2 1 4 Swap 58 | 1 10 1 17 2 12 2 2 1 . 3 2 1 2 . 2 Drop 67 | . 6 . 12 9 12 5 6 3 2 2 . . 1 2 7 Fire 321 | 9 39 15 37 3 45 8 . . . 20 22 1 10 16 96 Melee 243 | . . . . . 129 11 . 13 5 2 5 27 38 13 . Ram 2 | . . . . . . . . . . . . . . . 2 Kick 4 | . . . . . . . . . . . . . . . 4 Crush 11 | . 2 1 4 4 . . . . . . . . . . . Escape Stasis . | . . . . . . . . . . . . . . . . Rewire 2 | . . . . 1 . . 1 . . . . . . . . Trap . | . . . . . . . . . . . . . . . . Miscellaneous . | . . . . . . . . . . . . . . . . Route ------- -11/Scrapyard -10/Materials (discovered 5 exits: [*Mat x3] / *Min x2) -9/Materials -9/Storage (discovered 2 exits: [*Mat] / *Rec) -9/Recycling -7/Factory (discovered 3 exits: *Fac / Low x2) -6/Factory (discovered 6 exits: Fac x4 / Low x2) -6/Waste -6/Factory (discovered 5 exits: *Fac x4 / *Low) -5/Factory (discovered 4 exits: Upp x2 / *Ext x2) -5/Extension (discovered 2 exits: *Fac / *Cet) -5/Cetus -5/Archives (discovered 3 exits: *Fac / *Hub x2) -5/Hub_04(d) (discovered 2 exits: *Fac x2) -4/Factory (discovered 4 exits: *Res / *Upp x2 / Arm) -3/Research History --------- Turn | Location | Event 20 | -11/Scrapyard | Discovered new exit (range 15) 236 | -11/Scrapyard | Entered Materials 268 | -10/Materials | Discovered new exit (range 22) 313 | -10/Materials | Build established: Mutant 313 | -10/Materials | Identified exit to Mines 431 | -10/Materials | Discovered new exit (range 16) 758 | -10/Materials | Discovered new exit (range 14) 829 | -10/Materials | Entered another Materials area 829 | -9/Materials | Evolved 2 slots: Utility x2 847 | -9/Materials | Discovered new exit (range 9) 909 | -9/Materials | Identified exit to Storage 909 | -9/Materials | Entered Storage 1601 | -9/Storage | Identified exit to Recycling 1680 | -9/Storage | Assisted by bots powering up and referring to "LRC-V3" 1707 | -9/Storage | Discovered new exit (range 16) 1759 | -9/Storage | Lost 3 allies 1921 | -9/Storage | Used back door to open Recycling access 1942 | -9/Storage | Entered Recycling 1942 | -9/Recycling | Accompanied by 5 allies 1980 | -9/Recycling | Build established: Commander-Mutant 2600 | -9/Recycling | Discovered new exit (range 15) 2748 | -9/Recycling | Scanned before Scraplab entrance 2759 | -9/Recycling | Angered Scraplab inhabitants 2845 | -9/Recycling | Lost 6 allies 2925 | -9/Recycling | Found Prototype Device 2925 | -9/Recycling | Identified Scrap Engine 3093 | -9/Recycling | Build established: Mutant 4098 | -9/Recycling | Build established: Construct 4165 | -9/Recycling | Identified exit to Factory 4166 | -9/Recycling | Entered Factory 4166 | -7/Factory | Evolved 4 slots: Propulsion x1, Utility x3 4212 | -7/Factory | Identified exit to DSF 4270 | -7/Factory | Identified exit to Lower Caves 4378 | -7/Factory | Garrison activated, responded to threat 4474 | -7/Factory | Build established: Hacker-Mutant 4966 | -7/Factory | First assault squad dispatched 5155 | -7/Factory | System corruption reached 10% 5391 | -7/Factory | Build established: Mutant 5948 | -7/Factory | Core integrity fell below 50% 6135 | -7/Factory | Garrison activated, responded to threat 6210 | -7/Factory | Discovered new exit (range 15) 6633 | -7/Factory | Fabricated Imp. Gyrokinetic Inverter (x2) 6755 | -7/Factory | Lost 3 parts (1n2u) 7044 | -7/Factory | Fabricated Field Propulsion Drive? 7464 | -7/Factory | Entered another Factory area 7464 | -6/Factory | Evolved 2 slots: Propulsion x1, Utility x1 7491 | -6/Factory | Identified exit to Lower Caves 7543 | -6/Factory | Identified exit to Factory 7597 | -6/Factory | Fabricated Med. Armor Plating? 7800 | -6/Factory | Build established: Scout 7932 | -6/Factory | Spotted B-75 Beast 8116 | -6/Factory | Sucked down chute 8116 | -6/Factory | Entered Waste 8117 | -6/Waste | Joined by Warlord forces that had cleared the area 8149 | -6/Waste | Found Damper Plating 8220 | -6/Waste | Build established: Assassin 8295 | -6/Waste | Discovered new exit (range 16) 8416 | -6/Waste | Identified exit to Factory 8593 | -6/Waste | Entered Factory 8593 | -6/Factory | Accompanied by 20 allies 8886 | -6/Factory | Build established: Scout 8957 | -6/Factory | Central database locked down 8999 | -6/Factory | Discovered exit to Lower Caves (range 6) 9258 | -6/Factory | Fabricated Hacking Suite (x1) 9368 | -6/Factory | Entered another Factory area 9368 | -5/Factory | Accompanied by 16 allies 9368 | -5/Factory | Evolved 2 slots: Utility x2 9514 | -5/Factory | Lost 5 allies 9526 | -5/Factory | Garrison activated, responded to threat 9560 | -5/Factory | Fabricated Field Propulsion Drive (x2) 9595 | -5/Factory | Identified exit to Upper Caves 9595 | -5/Factory | Identified exit to Extension 9944 | -5/Factory | Entered Extension 9944 | -5/Extension | Accompanied by 10 allies 9946 | -5/Extension | Build established: Hacker-Assassin 9963 | -5/Extension | Disrupted transfer network 10128 | -5/Extension | Spotted B-75 Beast 10135 | -5/Extension | Allies destroyed B-75 Beast 10143 | -5/Extension | Spotted B-75 Beast 10162 | -5/Extension | Allies destroyed B-75 Beast 10309 | -5/Extension | Discovered new exit (range 15) 10310 | -5/Extension | Discovered new exit (range 15) 10355 | -5/Extension | Identified exit to Cetus 10359 | -5/Extension | Identified exit to Factory 10368 | -5/Extension | Entered Cetus 10368 | -5/Cetus | Accompanied by 8 allies 10386 | -5/Cetus | Spotted Cetus Guard 10386 | -5/Cetus | Spotted Cetus Guard 10393 | -5/Cetus | Build established: Assassin 10395 | -5/Cetus | Spotted Cetus Guard 10400 | -5/Cetus | Destroyed Cetus Guard 10403 | -5/Cetus | Spotted Cetus Guard 10412 | -5/Cetus | Destroyed Cetus Guard 10433 | -5/Cetus | Destroyed Cetus Guard 10440 | -5/Cetus | Destroyed Cetus Guard 10461 | -5/Cetus | Lost 6 allies 10599 | -5/Cetus | Discovered new exit (range 16) 10611 | -5/Cetus | Identified exit to Archives 10620 | -5/Cetus | Entered Archives 10620 | -5/Archives | Accompanied by 1 ally 10705 | -5/Archives | System corruption reached 10% 10790 | -5/Archives | Unable to access archive contents 10804 | -5/Archives | Unable to access archive contents 10806 | -5/Archives | Discovered exit to Factory (range 15) 10844 | -5/Archives | Discovered new exit (range 13) 10875 | -5/Archives | Discovered new exit (range 13) 10890 | -5/Archives | Entered Hub_04(d) 11020 | -5/Hub_04(d) | Disrupted transfer network 11050 | -5/Hub_04(d) | Lost 4 parts (3u1w) 11110 | -5/Hub_04(d) | Discovered exit to Factory (range 8) 11300 | -5/Hub_04(d) | Build established: Mutant 11313 | -5/Hub_04(d) | Core integrity fell below 50% 11316 | -5/Hub_04(d) | Discovered exit to Factory (range 10) 11348 | -5/Hub_04(d) | Network Hub disabled 11357 | -5/Hub_04(d) | Lost 3 parts (2u1w) 11363 | -5/Hub_04(d) | Spotted Lightning 11364 | -5/Hub_04(d) | Spotted Lightning 11365 | -5/Hub_04(d) | Spotted Lightning 11380 | -5/Hub_04(d) | Entered Factory 11380 | -4/Factory | Evolved 2 slots: Power x1, Propulsion x1 11411 | -4/Factory | Discovered new exit (range 14) 11479 | -4/Factory | Identified exit to Upper Caves 11479 | -4/Factory | Identified exit to Armory 11625 | -4/Factory | Discovered new exit (range 9) 11632 | -4/Factory | Entered Research 11632 | -3/Research | Evolved 2 slots: Propulsion x1, Utility x1 11647 | -3/Research | Lost 6 parts (1p1n2u2w) 12144 | -3/Research | System corruption reached 10% 12211 | -3/Research | Lost 7 parts (1p3u3w) 12493 | -3/Research | Cargo convoy interrupted 12563 | -3/Research | System corruption reached 30% 12601 | -3/Research | Core integrity fell below 50% 12637 | -3/Research | Lost 10 parts (3p4u3w) 12978 | -3/Research | Core integrity fell below 20% 13005 | -3/Research | Lost 8 parts (3n3u2w) 13036 | -3/Research | Destroyed by S-43 Plague with Heavy Machine Gun Last Messages --------------- 12995_ Acquired Cmb. Linear Gravjet. 12997_ K-01 Serf cleans the Fabricator. 12997_ Dropped Cmb. Linear Gravjet. 12999_ Fabricator disabled. 13011_ System corrupted: Component data lost. 13011_ Slammed into K-01 Serf. 13012_ >> Machine Analyzer network decryption results: 13012_ Terminal x3 13013_ >> Machine Analyzer network decryption results: 13013_ Repair Station x2 13027_ System corrupted: Component data lost. 13028_ Connecting with Terminal... 13029_ >> Machine Analyzer network decryption results: 13029_ Fabricator x2 13032_ >> Machine Analyzer network decryption results: 13032_ DSF Access x1 Map ----- +----------------------------------------------------+ | ?????"?F"????????????????????????????????????????? | | ?????""""????????????????????????????????????????? | | ?????????????????????????????????????????????????? | | ?????????????????????????????????????????????????? | | ?????????????????????????????????????????????????? | | ?????????????????????????????????????????????????? | | ?????????????????????????????????????????????????? | | ?????????????????????????????????????????????????? | | ?????????????????????????????????????????????????? | | ?????????????????????????????????????????????????? | | ??????????????????????? ???????????????????????? | | ??????????????????????? ???????????????????????? | | ??????????????????????? ???????????????????????? | | ??????????????????????? u???????????????????????? | | ??????????????????????? ???????????????????????? | | ??????????????????????? ???????????????????????? | | ??????????????????????? ???????????????????????? | | ???????????????????????# #??????????????????????? | | ???????????????????????# #??????????????????????? | | ???????????????????????# #??????????????????????? | | ???????????????????????# #??????????????????????? | | ??????????????????????## ########### ?????????? | | ??????????????????????# ?????????? | | ?????????????????"?"??+ ????????? | | ?????????????????"T"??# ????????? | | ?????????????????"""??# @ ????????? | | ??????????????????????# """????????????? | | ??????????????????????# "" F""????????????? | | ?########+############# """"""????????????? | | ? """" #????????? | | ? #????????? | | #????????? | | """"" s ????????? | | ?# ""T"" p###+#######""T""####?????????? | | ?# # ?????"""""#????????????? | | ?# # ????###??????????????? | | ?# p # """"" ???????????????????? | | ?# # """"" #??????????????????? | | ?# # """"" #??????????????????? | | ?# """ """ # #??????????????????? | | ?# """ """ # ? #??????????????????? | | ?# """ """ # ??????????????????????? | | ?# #####????????????????????????? | | ?+ #????????????????????????????? | | ?# #????????????????????????????? | | ?# #????????????????????""""????? | | ?# #????????????????????""""????? | | ?# ##########+####????????????????????"""""???? | | ?# ## #????????????????????""""????? | | ?# ## #????????????????????????????? | +----------------------------------------------------+ Best States ------------- Heat Dissipation 65 Coolant Potential 80 Energy Generation 45 Energy Capacity 1040 Matter Stores 300 Matter Capacity 300 Sight Range 16 Robot Scan Range 15 Terrain Scan Range 16 Terrain Scan Density 10 Additional Mass Support 9 Armor Coverage 1050 Resistance: KI 30 Resistance: TH 30 Propulsion Shielding 66 Utility Shielding 90 Melee Speed Boost 20 Evasion (%) 57 Targeting Accuracy 20 Melee Accuracy 8 Recoil Reduction 4 Offensive Hacking 20 Authchip Count 1 Item Schematics ----------------- Adv. Treads | -9/Storage | Hacked Med. Armor Plating | -9/Recycling | Hacked Imp. Light Armor Plating | -9/Recycling | Hacked Plasma Cutter | -9/Recycling | Hacked Field Propulsion Drive | -7/Factory | Hacked Hacking Suite | -6/Factory | Hacked Robot Schematics ------------------ A-02 Transporter | -9/Storage | Hacked Fabricated ------------ Imp. Gyrokinetic Inverter | x2 | -7/Factory | Preloaded Field Propulsion Drive | x2 | -7/Factory Med. Armor Plating | x2 | -6/Factory Hacking Suite | x1 | -6/Factory Field Propulsion Drive | x2 | -5/Factory Repaired ---------- Nothing Studied --------- None Alien Tech Used ----------------- None Achievements -------------- We Are Legion We Love MA Challenges ------------ None Game ------ Seed MachineSpreadSheargun Manual? 0 Play Time 01:51:23 Cumulative 93.4 hours Start 2026.02.23 @ 13:31:59 End 2026.02.23 @ 15:24:35 Sessions 1 Manual Loads 0 Difficulty Rogue Special Mode None Game No. 146 Rogue 146 Adventurer 0 Explorer 0 Win Type - Total 1 Types 1/0/0/0/0/0/0/0/0/0 Lore% 44 Gallery% 49 Achievement% 35 Wizard Run 0 Options --------- Layout 1 ASCII 0 Keyboard 1 Movement Arrows Keybinds 0 Fullscreen 1 Font 24/Smallcaps Map View 50x35 Zoom Use 0% Tactical HUD 1 Map Filters NONE Filters NONE Steam 1 RUN: a54826c9-4c08-4462-9ccb-b30c8b63a9fb